bitfinex/quotes_BTCUSD_20240613
["timestamp","ask_amount","ask_price","bid_price","bid_amount"]
[1718264950671,0.00186,67625.0,67624.0,0.6396649]
[1718264950890,0.00186,67625.0,67624.0,0.70576534]
[1718264957390,0.00186,67625.0,67624.0,0.6396649]
[1718264957594,0.00186,67625.0,67624.0,0.70576534]
[1718264958007,0.00186,67625.0,67624.0,0.6396649]
[1718264958807,0.00186,67625.0,67624.0,0.70576534]
[1718264959241,0.00186,67625.0,67624.0,0.77946698]
[1718264960041,0.00186,67625.0,67624.0,0.67450087]
[1718264960284,0.00186,67625.0,67624.0,0.77935569]
[1718264960502,0.00186,67625.0,67624.0,0.79562904]
[1718264961019,0.00186,67625.0,67624.0,0.93623517]
[1718264961196,0.00186,67625.0,67624.0,0.87010819]
[1718264961897,0.00186,67625.0,67624.0,0.80840819]
[1718264962119,0.00186,67625.0,67624.0,0.80841062]
[1718264962643,0.00186,67625.0,67624.0,0.80743806]
[1718264962980,0.00186,67625.0,67624.0,0.80744385]
[1718264965245,0.00186,67625.0,67624.0,0.8956433]
[1718264971952,0.00186,67625.0,67624.0,0.91407438]
[1718264973056,0.00186,67625.0,67624.0,0.96989146]
[1718264973272,0.00186,67625.0,67624.0,0.88169201]
[1718264973906,0.00186,67625.0,67624.0,1.01479201]
[1718264974362,0.00186,67625.0,67624.0,1.11830501]
[1718264974574,0.00186,67625.0,67624.0,1.10202601]
[1718264974807,0.00186,67625.0,67624.0,1.11830273]
[1718264975021,0.00186,67625.0,67624.0,1.21830273]
[1718264975499,0.00186,67625.0,67624.0,1.01478973]
[1718264977847,0.00186,67625.0,67624.0,1.26830273]
[1718264978094,0.00186,67625.0,67624.0,1.39130273]
[1718264978319,0.00186,67625.0,67624.0,1.5235834]
[1718264978552,0.00186,67625.0,67624.0,1.39130273]
[1718264979426,0.00186,67625.0,67624.0,1.37730273]
[1718264979893,0.00186,67625.0,67624.0,1.39130273]
[1718264980112,0.00086,67625.0,67624.0,1.37830273]
[1718264980330,0.00086,67625.0,67624.0,1.64932973]
[1718264980561,0.00086,67652.0,67651.0,0.19775837]
[1718264980835,0.00086,67652.0,67651.0,0.44596321]
[1718264981067,0.11576,67652.0,67651.0,0.44596321]
[1718264981306,0.12762682,67652.0,67651.0,0.44596321]
[1718264983295,0.12762682,67652.0,67651.0,0.3420783]
[1718264983535,0.12762682,67652.0,67651.0,0.3560783]
[1718264983743,0.12762682,67652.0,67651.0,0.3700783]
[1718264983959,0.12762682,67652.0,67651.0,0.47460625]
[1718264984400,0.12762682,67652.0,67651.0,0.3700783]
[1718264992266,0.07842682,67652.0,67651.0,0.3700783]
[1718264992464,0.07842682,67652.0,67651.0,0.47486617]
[1718264992666,0.01272682,67652.0,67651.0,0.48486617]
[1718264992848,0.01272682,67652.0,67651.0,0.47086617]
[1718264993045,0.00086,67652.0,67651.0,0.50462874]
[1718264993279,0.00086,67652.0,67651.0,0.51862874]
[1718264993498,0.00086,67652.0,67651.0,0.50468481]
[1718264993704,0.00086,67652.0,67651.0,0.51868481]
[1718264993916,0.00086,67652.0,67651.0,0.53268481]
[1718264994115,0.00086,67652.0,67651.0,0.51868481]
[1718264994321,0.00086,67652.0,67651.0,0.50468481]
[1718264994532,0.00086,67652.0,67651.0,0.53268481]
[1718264995370,0.00086,67652.0,67651.0,0.64052224]
[1718264995592,0.00086,67652.0,67651.0,0.53318939]
[1718264997150,0.00086,67652.0,67651.0,0.64102682]
[1718264997777,0.00086,67652.0,67651.0,0.53318939]
[1718264998560,0.00086,67652.0,67651.0,0.64102682]
[1718264999170,0.00086,67652.0,67651.0,0.53318939]
[1718264999374,0.00086,67652.0,67651.0,0.64102682]
[1718265000117,0.00086,67652.0,67651.0,0.53318939]
[1718265000333,0.00086,67652.0,67651.0,0.64102682]
[1718265000770,0.00086,67652.0,67651.0,0.64073888]
[1718265001533,0.00086,67652.0,67651.0,0.71203888]
[1718265001735,0.00086,67652.0,67651.0,0.84933888]
[1718265001960,0.00086,67652.0,67651.0,0.83933888]
[1718265002161,0.00086,67652.0,67651.0,0.84933888]
[1718265002796,0.00086,67652.0,67651.0,0.84934159]
[1718265003038,0.00086,67652.0,67651.0,0.77804159]
[1718265003159,0.00086,67652.0,67651.0,0.70624159]
[1718265004401,0.00086,67652.0,67651.0,0.71624159]
[1718265004610,0.00086,67652.0,67651.0,0.63074159]
[1718265004803,0.11646,67652.0,67651.0,0.63074159]
[1718265005008,0.12840442,67652.0,67651.0,0.63074159]
[1718265005913,0.12840442,67652.0,67651.0,0.5256783]
[1718265006134,0.12840442,67652.0,67651.0,0.63025567]
[1718265006630,0.12840442,67652.0,67651.0,0.47465567]
[1718265011414,0.12840442,67652.0,67651.0,0.4745643]
[1718265025780,0.12840442,67652.0,67651.0,0.37672687]
[1718265026079,0.12840442,67652.0,67651.0,0.4545643]
[1718265026300,0.12840442,67652.0,67651.0,0.37672687]
[1718265026503,0.12840442,67652.0,67651.0,0.4545643]
[1718265027483,0.12840442,67652.0,67651.0,0.4745643]
[1718265030824,0.01280442,67652.0,67651.0,0.4745643]
[1718265031662,0.01586434,67652.0,67651.0,0.4745643]
[1718265038229,0.01586434,67652.0,67651.0,0.37672687]
[1718265038444,0.01586434,67652.0,67651.0,0.4545643]
[1718265038657,0.06506434,67652.0,67651.0,0.4545643]
[1718265038866,0.05006,67652.0,67651.0,0.4545643]
[1718265039174,0.05006,67652.0,67651.0,0.37672687]
[1718265039175,0.06440559,67652.0,67651.0,0.37672687]
[1718265039388,0.12680559,67652.0,67651.0,0.18240694]
[1718265039829,0.12680559,67652.0,67651.0,0.132486]
[1718265040044,0.12680559,67652.0,67651.0,0.07792094]
[1718265040270,0.12680559,67652.0,67651.0,0.028]
[1718265040526,0.12680559,67652.0,67651.0,0.04992094]
[1718265040948,0.12680559,67652.0,67651.0,0.06392094]
[1718265041159,0.12680559,67652.0,67645.0,0.05]
[1718265041160,0.01520559,67652.0,67650.0,0.04992094]
[1718265041367,0.1154,67651.0,67650.0,0.04992094]
[1718265041574,0.1867,67651.0,67650.0,0.04992094]
[1718265041992,0.20104559,67651.0,67650.0,0.04992094]
[1718265043212,0.12974559,67651.0,67650.0,0.04992094]
[1718265043419,0.20104559,67651.0,67650.0,0.04992094]
[1718265043842,0.20104559,67651.0,67650.0,0.06192094]
[1718265044043,0.20104559,67651.0,67650.0,0.07592094]
[1718265045305,0.01434559,67651.0,67650.0,0.22375837]
[1718265045540,0.01434559,67651.0,67650.0,0.29885837]
[1718265045750,0.01434559,67651.0,67650.0,0.20102094]
[1718265045947,0.01434559,67651.0,67650.0,0.27885837]
[1718265046169,0.01434559,67651.0,67650.0,0.20375837]
[1718265046438,0.01434559,67651.0,67650.0,0.12592094]
[1718265046859,0.01434559,67651.0,67650.0,0.20375837]
[1718265047214,0.01434559,67651.0,67650.0,0.12592094]
[1718265047655,0.12354559,67651.0,67650.0,0.12592094]
[1718265048518,0.12354559,67651.0,67650.0,0.07592094]
[1718265057063,0.12354559,67651.0,67650.0,0.026]
[1718265057280,0.12354559,67651.0,67650.0,0.07592094]
[1718265060413,0.12354559,67651.0,67650.0,0.026]
[1718265062349,0.12354559,67651.0,67650.0,0.07592094]
[1718265062988,0.12354559,67651.0,67650.0,0.026]
[1718265068172,0.12354559,67651.0,67650.0,0.07592094]
[1718265068387,0.14128401,67651.0,67650.0,0.07592094]
[1718265068823,0.14128401,67651.0,67650.0,0.026]
[1718265069041,0.14128401,67651.0,67650.0,0.07592094]
[1718265075538,0.09208401,67651.0,67650.0,0.07592094]
[1718265077160,0.09294401,67651.0,67650.0,0.07592094]
[1718265078814,0.07520559,67651.0,67650.0,0.07592094]
[1718265080500,0.14650559,67651.0,67650.0,0.07592094]
[1718265082310,0.14650559,67651.0,67650.0,0.15375837]
[1718265082551,0.03301608,67651.0,67650.0,0.25595837]
[1718265082870,0.08650559,67651.0,67650.0,0.20603743]
[1718265083089,0.08650559,67651.0,67650.0,0.25595837]
[1718265083301,0.08650559,67651.0,67650.0,0.32065837]
[1718265084840,0.08650559,67651.0,67650.0,0.30065837]
[1718265085046,0.08650559,67651.0,67650.0,0.32065837]
[1718265088063,0.08650559,67651.0,67650.0,0.42727031]
[1718265088322,0.07216,67651.0,67650.0,0.42727031]
[1718265089179,0.07216,67651.0,67650.0,0.32065837]
[1718265089596,0.08651333,67651.0,67650.0,0.32065837]
[1718265091801,0.08651333,67651.0,67650.0,0.42747084]
[1718265092264,0.07216,67651.0,67650.0,0.42747084]
[1718265093337,0.07216,67651.0,67650.0,0.32065837]
[1718265094216,0.07216,67651.0,67650.0,0.22282094]
[1718265094428,0.07216,67651.0,67650.0,0.30065837]
[1718265094642,0.07216,67651.0,67650.0,0.32065837]
[1718265094856,0.08651333,67651.0,67650.0,0.23595837]
[1718265095290,0.08651333,67651.0,67650.0,0.15812094]
[1718265095944,0.08651333,67651.0,67650.0,0.23595837]
[1718265097364,0.08651333,67651.0,67650.0,0.15812094]
[1718265098237,0.08651333,67651.0,67650.0,0.23595837]
[1718265098594,0.08651333,67651.0,67650.0,0.15812094]
[1718265100269,0.08651333,67651.0,67650.0,0.1082]
[1718265100471,0.08651333,67651.0,67650.0,0.15812094]
[1718265103100,0.08651333,67651.0,67650.0,0.07592094]
[1718265103295,0.20171333,67651.0,67650.0,0.026]
[1718265103832,1.02044845,67651.0,67650.0,0.026]
[1718265104056,1.13020607,67651.0,67650.0,0.026]
[1718265104254,1.24094032,67651.0,67650.0,0.026]
[1718265104465,1.24094032,67651.0,67650.0,0.014]
[1718265104693,1.13020607,67651.0,67650.0,0.014]
[1718265104891,1.13020607,67651.0,67650.0,0.015]
[1718265105565,1.13020607,67651.0,67650.0,0.001]
[1718265105802,1.13020607,67651.0,67650.0,0.015]
[1718265106007,1.13020607,67651.0,67650.0,0.014]
[1718265106215,0.0658,67647.0,67636.0,0.04992094]
[1718265106419,0.0713,67637.0,67636.0,0.04992094]
[1718265107088,0.08564919,67637.0,67636.0,0.04992094]
[1718265107302,0.08514919,67637.0,67636.0,0.04992094]
[1718265109037,0.08514919,67637.0,67636.0,0.05992094]
[1718265109238,0.08514919,67637.0,67636.0,0.04992094]
[1718265109705,0.08514919,67637.0,67636.0,0.06092094]
[1718265110063,0.08514919,67637.0,67636.0,0.04992094]
[1718265110465,0.08514919,67637.0,67636.0,0.05992094]
[1718265110884,0.0708,67637.0,67636.0,0.04992094]
[1718265111066,0.08514919,67637.0,67636.0,0.04992094]
[1718265112294,0.08514919,67637.0,67636.0,0.06092094]
[1718265112649,0.08514919,67637.0,67636.0,0.04992094]
[1718265114010,0.08514919,67637.0,67636.0,0.13662094]
[1718265114238,0.08514919,67637.0,67636.0,0.27525837]
[1718265114575,0.08514919,67637.0,67636.0,0.19742094]
[1718265114636,0.0708,67637.0,67636.0,0.19742094]
[1718265114999,0.08512269,67637.0,67636.0,0.19742094]
[1718265115429,0.08512269,67637.0,67636.0,0.27525837]
[1718265117331,0.08512269,67637.0,67636.0,0.27575837]
[1718265117808,0.08512269,67637.0,67636.0,0.19792094]
[1718265118659,0.08512269,67637.0,67636.0,0.27575837]
[1718265120015,0.08512269,67637.0,67636.0,0.19792094]
[1718265120240,0.08512269,67637.0,67636.0,0.29575837]
[1718265120441,0.01432269,67637.0,67636.0,0.4900783]
[1718265120639,0.08562269,67637.0,67636.0,0.4900783]
[1718265120861,0.0713,67637.0,67636.0,0.4900783]
[1718265121393,0.0713,67637.0,67636.0,0.4700783]
[1718265121570,0.0713,67637.0,67636.0,0.4900783]
[1718265122876,0.0713,67637.0,67636.0,0.44015736]
[1718265123089,0.0713,67637.0,67636.0,0.4900783]
[1718265125116,0.1,67649.0,67647.0,0.07783743]
[1718265125320,0.0713,67648.0,67646.0,0.07783743]
[1718265125522,0.01432621,67648.0,67644.0,0.0808]
[1718265125725,0.0713,67645.0,67644.0,0.0808]
[1718265126141,0.08562621,67645.0,67644.0,0.0808]
[1718265127912,0.08562621,67645.0,67644.0,0.0818]
[1718265128114,0.08562621,67645.0,67644.0,0.0868]
[1718265128315,0.08562621,67645.0,67644.0,0.0858]
[1718265128760,0.08562621,67645.0,67644.0,0.0868]
[1718265129991,0.08562621,67645.0,67644.0,0.08735]
[1718265130428,0.08562621,67645.0,67644.0,0.00655]
[1718265134347,0.08562621,67645.0,67644.0,0.08438743]
[1718265135671,0.08562621,67645.0,67644.0,0.00655]
[1718265136332,0.08562621,67645.0,67644.0,0.08438743]
[1718265136476,0.08562621,67645.0,67644.0,0.00655]
[1718265136906,0.08562621,67645.0,67644.0,0.10438743]
[1718265137205,0.08562621,67645.0,67644.0,0.00655]
[1718265137418,0.08562621,67645.0,67644.0,0.08438743]
[1718265137750,0.08562621,67645.0,67644.0,0.00655]
[1718265140954,0.08648621,67645.0,67644.0,0.00655]
[1718265145589,0.20108621,67645.0,67644.0,0.00655]
[1718265145801,0.30108621,67645.0,67644.0,0.00655]
[1718265148788,0.31857787,67645.0,67644.0,0.00655]
[1718265156301,0.26937787,67645.0,67644.0,0.00655]
[1718265157876,0.18648621,67645.0,67644.0,0.00655]
[1718265158089,0.08648621,67645.0,67644.0,0.00655]
[1718265158294,0.18648621,67645.0,67644.0,0.00655]
[1718265159325,0.08648621,67645.0,67644.0,0.00655]
[1718265160027,0.10405259,67645.0,67644.0,0.00655]
[1718265160252,0.20405259,67645.0,67644.0,0.00655]
[1718265162465,0.24835522,67645.0,67644.0,0.00655]
[1718265162670,0.24825522,67645.0,67644.0,0.00655]
[1718265162875,0.20395259,67645.0,67644.0,0.00655]
[1718265163275,0.24825522,67645.0,67644.0,0.00655]
[1718265163636,0.20395259,67645.0,67644.0,0.00655]
[1718265163850,0.24825522,67645.0,67644.0,0.00655]
[1718265164862,0.20395259,67645.0,67644.0,0.00655]
[1718265165297,0.27040654,67645.0,67644.0,0.00655]
[1718265165520,0.20395259,67645.0,67644.0,0.00655]
[1718265166563,0.24829418,67645.0,67644.0,0.00655]
[1718265171783,0.24828957,67645.0,67644.0,0.00655]
[1718265172640,0.20395259,67645.0,67644.0,0.00655]
[1718265172866,0.18638621,67645.0,67644.0,0.00655]
[1718265173373,0.18638621,67645.0,67644.0,0.08215]
[1718265173580,0.08638621,67645.0,67644.0,0.15998743]
[1718265173791,0.18638621,67645.0,67644.0,0.15998743]
[1718265174227,0.20449071,67645.0,67644.0,0.15998743]
[1718265176095,0.20449071,67645.0,67644.0,0.08215]
[1718265183076,0.24882414,67645.0,67644.0,0.08215]
[1718265183503,0.20449071,67645.0,67644.0,0.08215]
[1718265184121,0.18638621,67645.0,67644.0,0.08215]
[1718265184784,0.23071856,67645.0,67644.0,0.08215]
[1718265185000,0.18638621,67645.0,67644.0,0.08215]
[1718265185400,0.23071856,67645.0,67644.0,0.08215]
[1718265185859,0.18638621,67645.0,67644.0,0.08215]
[1718265186943,0.20388448,67645.0,67644.0,0.08215]
[1718265188335,0.24821425,67645.0,67644.0,0.08215]
[1718265189560,0.24761939,67645.0,67644.0,0.08215]
[1718265191255,0.24661939,67645.0,67644.0,0.08215]
[1718265191485,0.24661816,67645.0,67644.0,0.08215]
[1718265193534,0.24661708,67645.0,67644.0,0.08215]
[1718265194422,0.20228962,67645.0,67644.0,0.08215]
[1718265194628,0.24661673,67645.0,67644.0,0.08215]
[1718265198254,0.22911846,67645.0,67644.0,0.08215]
[1718265198462,0.22911846,67645.0,67644.0,0.15998743]
[1718265200499,0.18479135,67645.0,67644.0,0.15998743]
[1718265202256,0.08479135,67645.0,67644.0,0.15998743]
[1718265202703,0.10251025,67645.0,67644.0,0.15998743]
[1718265202914,0.20251025,67645.0,67644.0,0.15998743]
[1718265204694,0.01349135,67645.0,67644.0,0.4899283]
[1718265204925,0.01349135,67645.0,67644.0,0.59709258]
[1718265205142,0.00086,67645.0,67644.0,0.59709258]
[1718265206073,0.00086,67645.0,67644.0,0.59209258]
[1718265206289,0.00086,67645.0,67644.0,0.60209258]
[1718265206517,0.00086,67645.0,67644.0,0.60609258]
[1718265206744,0.00086,67645.0,67644.0,0.60509258]
[1718265207412,0.00086,67645.0,67644.0,0.60603858]
[1718265207808,0.00086,67645.0,67644.0,0.60103858]
[1718265208669,0.00086,67645.0,67644.0,0.61503858]
[1718265208908,0.00086,67645.0,67644.0,0.62503858]
[1718265209132,0.00086,67645.0,67644.0,0.61103858]
[1718265209385,0.00086,67645.0,67644.0,0.60103858]
[1718265209594,0.00086,67645.0,67644.0,0.62503858]
[1718265209798,0.00086,67645.0,67644.0,0.60203858]
[1718265209975,0.00086,67645.0,67644.0,0.61547828]
[1718265210221,0.00086,67645.0,67644.0,0.62447828]
[1718265210811,0.00086,67645.0,67644.0,0.61447828]
[1718265211453,0.00086,67645.0,67644.0,0.62847828]
[1718265211655,0.00086,67645.0,67644.0,0.63847828]
[1718265215450,0.00086,67645.0,67644.0,0.63840829]
[1718265216252,0.00086,67645.0,67644.0,0.62840829]
[1718265216462,0.00086,67645.0,67644.0,0.63840829]
[1718265216670,0.00086,67645.0,67644.0,0.62940829]
[1718265217070,0.00086,67645.0,67644.0,0.64040829]
[1718265217481,0.00086,67645.0,67644.0,0.63040829]
[1718265217681,0.00086,67645.0,67644.0,0.64040829]
[1718265218474,0.00086,67645.0,67644.0,0.62640829]
[1718265218858,0.00086,67645.0,67644.0,0.64040829]
[1718265219928,0.00086,67645.0,67644.0,0.97079029]
[1718265220346,0.00086,67645.0,67644.0,0.9112021]
[1718265220552,0.00086,67645.0,67644.0,0.86730829]
[1718265224724,0.00086,67645.0,67644.0,0.86562707]
[1718265225700,0.00086,67645.0,67644.0,0.94062707]
[1718265225909,0.00086,67645.0,67644.0,0.95462707]
[1718265226120,0.00086,67645.0,67644.0,0.96862707]
[1718265226336,0.00086,67645.0,67644.0,0.95462707]
[1718265226543,0.00086,67645.0,67644.0,0.85462707]
[1718265226715,0.00086,67645.0,67644.0,0.86862707]
[1718265232720,0.00086,67645.0,67644.0,0.88594931]
[1718265234519,0.00086,67645.0,67644.0,0.8859914]
[1718265238666,0.00086,67645.0,67644.0,0.95945132]
[1718265238875,0.00086,67645.0,67644.0,0.95947411]
[1718265239280,0.00086,67645.0,67644.0,0.94215187]
[1718265242499,0.00086,67645.0,67644.0,1.04215187]
[1718265242715,0.00086,67645.0,67644.0,1.66335872]
[1718265242943,0.00086,67645.0,67644.0,1.7071935]
[1718265243406,0.00086,67645.0,67644.0,1.66335872]
[1718265244043,0.00086,67645.0,67644.0,1.66301687]
[1718265244251,0.00086,67645.0,67644.0,1.72876904]
[1718265244466,0.00086,67645.0,67644.0,1.67920132]
[1718265245977,0.00086,67645.0,67644.0,1.67920442]
[1718265246451,0.00086,67645.0,67644.0,1.76690843]
[1718265246657,0.00086,67645.0,67644.0,1.77920442]
[1718265247701,0.00086,67645.0,67644.0,1.70790442]
[1718265247919,0.00086,67645.0,67644.0,1.77920442]
[1718265248557,0.00086,67645.0,67644.0,1.88883444]
[1718265249637,0.00086,67645.0,67644.0,1.77920442]
[1718265250049,0.00086,67645.0,67644.0,1.7792276]
[1718265250466,0.00086,67645.0,67644.0,1.8522276]
[1718265250881,0.00086,67645.0,67644.0,1.83450275]
[1718265251130,0.00086,67645.0,67644.0,2.07746775]
[1718265251267,0.00086,67645.0,67644.0,2.06346775]
[1718265251465,0.00086,67645.0,67644.0,2.09146775]
[1718265252085,0.00086,67645.0,67644.0,2.23918058]
[1718265252490,0.00086,67645.0,67644.0,2.03221558]
[1718265252694,0.00086,67645.0,67644.0,1.88450275]
[1718265254507,0.00086,67645.0,67644.0,1.88451812]
[1718265254948,0.00086,67645.0,67644.0,1.90247345]
[1718265259882,0.00086,67645.0,67644.0,2.34597345]
[1718265260100,0.00086,67652.0,67644.0,2.34597345]
[1718265260101,0.00086,67652.0,67651.0,1.51607437]
[1718265260301,0.00086,67652.0,67651.0,1.78471212]
[1718265261223,0.00086,67652.0,67651.0,1.68471212]
[1718265261470,0.00086,67652.0,67651.0,1.78471212]
[1718265261923,0.00086,67652.0,67651.0,1.68471212]
[1718265263438,0.00086,67652.0,67651.0,1.69871212]
[1718265263673,0.00086,67652.0,67651.0,1.87087208]
[1718265263886,0.00086,67652.0,67651.0,1.78487208]
[1718265264975,0.00086,67652.0,67651.0,1.83689963]
[1718265265985,0.00086,67652.0,67651.0,1.88487208]
[1718265266201,0.00086,67652.0,67651.0,1.9369096]
[1718265267600,0.00086,67652.0,67651.0,1.8369096]
[1718265271458,0.00086,67652.0,67651.0,1.9369096]
[1718265271680,0.00086,67652.0,67651.0,1.86344388]
[1718265272809,0.00086,67652.0,67651.0,1.84100246]
[1718265273507,0.00086,67652.0,67651.0,1.91230246]
[1718265277750,0.00086,67652.0,67651.0,1.92989268]
[1718265279250,0.00086,67652.0,67651.0,2.02989268]
[1718265279684,0.00086,67652.0,67651.0,1.92989268]
[1718265279901,0.00086,67652.0,67651.0,2.02989268]
[1718265280109,0.00086,67652.0,67651.0,1.92989268]
[1718265280536,0.00086,67652.0,67651.0,2.02989268]
[1718265280763,0.00086,67652.0,67651.0,2.16151661]
[1718265280973,0.00086,67652.0,67651.0,2.30964404]
[1718265281930,0.00086,67652.0,67651.0,2.20964404]
[1718265282129,0.00086,67652.0,67651.0,2.2115076]
[1718265283319,0.00086,67652.0,67651.0,2.07983536]
[1718265283515,0.00086,67652.0,67651.0,1.95350633]
[1718265283722,0.00086,67652.0,67651.0,2.06249894]
[1718265284423,0.00086,67652.0,67651.0,1.95350633]
[1718265284636,0.00086,67652.0,67651.0,1.93082373]
[1718265284833,0.00086,67652.0,67651.0,1.95350633]
[1718265285060,0.00086,67652.0,67651.0,1.93082373]
[1718265286160,0.00086,67652.0,67651.0,1.91323351]
[1718265287445,0.00086,67652.0,67651.0,1.93148209]
[1718265287682,0.00086,67652.0,67651.0,2.03148209]
[1718265288318,0.00086,67652.0,67651.0,1.93148209]
[1718265288734,0.00086,67652.0,67651.0,2.03148209]
[1718265288981,0.00086,67652.0,67651.0,1.93148209]
[1718265289386,0.00086,67652.0,67651.0,2.03148209]
[1718265291150,0.00086,67652.0,67651.0,2.03147806]
[1718265294261,0.00086,67652.0,67651.0,2.23842206]
[1718265294479,0.00086,67652.0,67651.0,2.38744794]
[1718265296063,0.00086,67652.0,67651.0,2.39335894]
[1718265299746,0.00086,67652.0,67651.0,2.37511036]
[1718265301116,0.00086,67652.0,67651.0,2.39275981]
[1718265303227,0.00086,67652.0,67651.0,2.58730424]
[1718265303563,0.00086,67652.0,67651.0,2.53528093]
[1718265303764,0.00086,67652.0,67651.0,2.58736225]
[1718265305257,0.00086,67652.0,67651.0,2.39281782]
[1718265306894,0.00086,67657.0,67656.0,0.40775837]
[1718265307095,0.00086,67657.0,67656.0,1.0442783]
[1718265307304,0.00086,67657.0,67656.0,1.59256825]
[1718265307506,0.00086,67665.0,67664.0,1.24561037]
[1718265307707,0.00086,67665.0,67664.0,1.79912725]
[1718265309036,0.00086,67665.0,67664.0,1.82212725]
[1718265309239,0.00086,67665.0,67664.0,1.83612725]
[1718265309417,0.00086,67665.0,67664.0,1.96798734]
[1718265310476,0.00086,67665.0,67664.0,1.97698734]
[1718265310853,0.00086,67665.0,67664.0,2.02698734]
[1718265312204,0.00086,67665.0,67664.0,1.95792725]
[1718265312809,0.00086,67665.0,67664.0,2.31483125]
[1718265313015,0.00086,67665.0,67664.0,2.46385713]
[1718265313226,0.00086,67665.0,67664.0,2.25695313]
[1718265313424,0.00086,67665.0,67664.0,2.31483125]
[1718265313620,0.00086,67665.0,67664.0,2.46385713]
[1718265313839,0.00086,67665.0,67664.0,2.45485713]
[1718265314253,0.01542085,67668.0,67667.0,0.46680537]
[1718265314455,0.01542085,67668.0,67667.0,1.11548584]
[1718265315386,0.01542085,67668.0,67667.0,1.24721766]
[1718265315584,0.01542085,67668.0,67667.0,1.32601766]
[1718265316010,0.01542085,67668.0,67667.0,1.37601766]
[1718265316532,0.01542085,67668.0,67667.0,1.40401766]
[1718265316680,0.01542085,67668.0,67667.0,1.50401766]
[1718265316914,0.01542085,67668.0,67667.0,1.40401766]
[1718265317317,0.01542085,67668.0,67667.0,1.27232097]
[1718265318292,0.01542085,67668.0,67667.0,1.27376966]
[1718265318817,0.01542085,67668.0,67667.0,1.33996966]
[1718265319022,0.01542085,67668.0,67667.0,1.27376966]
[1718265319292,0.01542085,67668.0,67667.0,1.27377583]
[1718265320346,0.01542085,67668.0,67667.0,1.25977583]
[1718265320563,0.01542085,67668.0,67667.0,1.27377583]
[1718265321025,0.0492,67685.0,67675.0,1.16679337]
[1718265321301,0.43295979,67704.0,67675.0,1.46389072]
[1718265321520,0.14,67676.0,67675.0,1.64922137]
[1718265321743,0.14,67676.0,67675.0,1.736976]
[1718265321966,0.14,67676.0,67675.0,1.64922137]
[1718265322391,0.14,67676.0,67675.0,1.74697686]
[1718265322614,0.14,67676.0,67675.0,1.15628472]
[1718265322826,0.14,67676.0,67675.0,1.22758472]
[1718265323028,0.14,67676.0,67675.0,1.07209329]
[1718265323279,0.14,67676.0,67675.0,0.84519329]
[1718265323520,0.14,67676.0,67675.0,0.52519329]
[1718265323760,0.14,67676.0,67675.0,0.49579329]
[1718265324397,0.14,67676.0,67675.0,0.3982007]
[1718265324615,0.14,67676.0,67675.0,0.49602847]
[1718265324830,0.14,67676.0,67675.0,0.36819104]
[1718265325076,0.14,67676.0,67675.0,0.41819104]
[1718265325521,0.14,67676.0,67675.0,0.41814428]
[1718265330253,0.14,67676.0,67675.0,0.49598171]
[1718265330684,0.14,67676.0,67675.0,0.41814428]
[1718265331418,0.14,67676.0,67675.0,0.49598171]
[1718265331826,0.14,67676.0,67675.0,0.41814428]
[1718265333246,0.14,67676.0,67675.0,0.49598171]
[1718265333852,0.14,67676.0,67675.0,0.41814428]
[1718265334099,0.14,67676.0,67675.0,0.49598171]
[1718265335459,0.14,67676.0,67675.0,0.41814428]
[1718265335688,0.14,67676.0,67675.0,0.49598171]
[1718265335900,0.14,67676.0,67675.0,0.41814428]
[1718265336322,0.14,67676.0,67675.0,0.49660848]
[1718265338253,0.14086,67676.0,67675.0,0.49660848]
[1718265338662,0.15167962,67676.0,67675.0,0.49660848]
[1718265338871,0.15167962,67676.0,67675.0,0.41877105]
[1718265341437,0.15167962,67676.0,67675.0,0.41869177]
[1718265343735,0.15167962,67676.0,67675.0,0.41870109]
[1718265347013,0.15167962,67676.0,67675.0,0.41863256]
[1718265350145,0.15167962,67676.0,67675.0,0.41863566]
[1718265351539,0.15167962,67676.0,67675.0,0.17439479]
[1718265351796,0.24514219,67676.0,67675.0,0.17439479]
[1718265352009,0.23432257,67676.0,67675.0,0.024]
[1718265352478,0.24514963,67676.0,67675.0,0.024]
[1718265354209,0.22298706,67676.0,67675.0,0.024]
[1718265354419,0.24514963,67676.0,67675.0,0.024]
[1718265355718,0.22298706,67676.0,67675.0,0.024]
[1718265371546,0.15168706,67676.0,67675.0,0.024]
[1718265371869,0.22298706,67676.0,67675.0,0.024]
[1718265373169,0.24131188,67676.0,67675.0,0.024]
[1718265374129,0.17001188,67676.0,67675.0,0.024]
[1718265374271,0.14131188,67676.0,67675.0,0.024]
[1718265375708,0.08298706,67676.0,67675.0,0.024]
[1718265375912,0.08298706,67676.0,67675.0,0.21831993]
[1718265376130,0.01168706,67676.0,67675.0,0.4937783]
[1718265376377,0.00086,67676.0,67675.0,0.4937783]
[1718265376588,0.00086,67676.0,67675.0,0.59143431]
[1718265376793,0.00086,67676.0,67675.0,0.54151337]
[1718265376999,0.00086,67676.0,67675.0,0.61143431]
[1718265377842,0.00086,67676.0,67675.0,0.51359688]
[1718265378875,0.00086,67676.0,67675.0,0.59143431]
[1718265379130,0.0713,67680.0,67677.0,0.12783743]
[1718265379356,0.0713,67680.0,67678.0,0.0970972]
[1718265379768,0.0713,67680.0,67678.0,0.17493463]
[1718265379976,0.0713,67680.0,67679.0,0.0970972]
[1718265380406,0.00857,67683.0,67682.0,0.12783743]
[1718265380627,0.00857,67683.0,67682.0,0.41285736]
[1718265381037,0.00857,67683.0,67682.0,0.50990316]
[1718265381245,0.00857,67683.0,67682.0,0.5798241]
[1718265383199,0.00857,67683.0,67682.0,0.6611241]
[1718265383401,0.00857,67683.0,67682.0,0.7695481]
[1718265383555,0.00857,67683.0,67682.0,0.92522016]
[1718265383966,0.00857,67683.0,67682.0,0.92022016]
[1718265384166,0.00857,67683.0,67682.0,0.7785481]
[1718265384519,0.00857,67683.0,67682.0,0.78033627]
[1718265384729,0.00857,67683.0,67682.0,0.79433627]
[1718265384932,0.00857,67683.0,67682.0,0.87007072]
[1718265385144,0.00857,67683.0,67682.0,0.78033627]
[1718265385354,0.00857,67683.0,67682.0,0.93593627]
[1718265385609,0.00857,67683.0,67682.0,0.94993627]
[1718265386260,0.00857,67683.0,67682.0,0.99380322]
[1718265386479,0.00857,67683.0,67682.0,0.89937922]
[1718265386684,0.00857,67683.0,67682.0,0.89965443]
[1718265387301,0.00857,67683.0,67682.0,0.85578748]
[1718265387504,0.00857,67683.0,67682.0,0.84178748]